lending/lending_fUSD_20240112
["ID","MTS","AMOUNT","RATE_DAILY","PERIOD"]
[311332139,1705063899955,-151.75,0.00024236,2]
[311332140,1705063899965,-604.12,0.00024236,2]
[311332141,1705063899975,-500.0,0.00024236,2]
[311332142,1705063899985,-500.0,0.00024236,2]
[311332143,1705063899994,-500.0,0.00024236,2]
[311332144,1705063900003,-500.0,0.00024236,2]
[311332145,1705063900015,-500.0,0.00024236,2]
[311332146,1705063900025,-807.85,0.00024236,2]
[311332147,1705063900034,-500.0,0.00024236,2]
[311332148,1705063900044,-500.0,0.00024236,2]
[311332149,1705063900053,-500.0,0.00024236,2]
[311332150,1705063900064,-500.0,0.00024236,2]
[311332151,1705063900073,-500.0,0.00024236,2]
[311332152,1705063900083,-500.0,0.00024236,2]
[311332153,1705063900093,-500.0,0.00024236,2]
[311332154,1705063900102,-500.0,0.00024236,2]
[311332155,1705063900112,-500.0,0.00024236,2]
[311332156,1705063900122,-500.0,0.00024236,2]
[311332157,1705063900131,-500.0,0.00024236,2]
[311332158,1705063900141,-500.0,0.00024236,2]
[311332159,1705063900220,-547.95,0.00024236,2]
[311332160,1705063900230,-579.89,0.00024236,2]
[311332161,1705063900240,-500.0,0.00024236,2]
[311332162,1705063900250,-500.0,0.00024236,2]
[311332163,1705063900261,-500.0,0.00024236,2]
[311332164,1705063900272,-500.0,0.00024236,2]
[311332165,1705063900282,-500.0,0.00024236,2]
[311332166,1705063900291,-548.75,0.00024236,2]
[311332167,1705063900301,-500.0,0.00024236,2]
[311332168,1705063900311,-500.0,0.00024236,2]
[311332169,1705063900320,-1230.23,0.00024236,2]
[311332170,1705063900331,-500.0,0.00024236,2]
[311332171,1705063900340,-500.0,0.00024236,2]
[311332172,1705063900349,-237.61747788,0.00024236,2]
[311332173,1705063900358,-500.0,0.00024236,2]
[311332174,1705063900368,-1043.35,0.00024236,2]
[311332175,1705063900378,-500.0,0.00024236,2]
[311332176,1705063900387,-537.69,0.00024236,2]
[311332177,1705063900397,-500.0,0.00024236,2]
[311332178,1705063900406,-500.0,0.00024236,2]
[311332179,1705063900417,-511.92524911,0.00024236,2]
[311332180,1705063900426,-500.0,0.00024236,2]
[311332181,1705063900437,-500.0,0.00024236,2]
[311332182,1705063900447,-500.0,0.00024236,2]
[311332183,1705063900456,-3508.3,0.00024236,2]
[311332184,1705063900465,-500.0,0.00024236,2]
[311332185,1705063900475,-500.0,0.00024236,2]
[311332186,1705063900485,-619.56,0.00024236,2]
[311332187,1705063900495,-500.0,0.00024236,2]
[311332188,1705063900505,-939.84,0.00024236,2]
[311332189,1705063900516,-2401.03,0.00024236,5]
[311332190,1705063900525,-500.0,0.00024236,2]
[311332191,1705063900535,-500.0,0.00024236,2]
[311332192,1705063900544,-500.0,0.00024236,2]
[311332193,1705063900553,-505.5,0.00024236,2]
[311332194,1705063900563,-500.0,0.00024236,2]
[311332195,1705063900573,-1105.06,0.00024236,2]
[311332196,1705063900582,-500.0,0.00024236,2]
[311332197,1705063900591,-522.95,0.00024236,2]
[311332198,1705063900601,-500.0,0.00024236,2]
[311332199,1705063900610,-1354.24,0.00024236,2]
[311332200,1705063900619,-500.0,0.00024236,2]
[311332201,1705063900628,-500.0,0.00024236,2]
[311332202,1705063900637,-500.0,0.00024236,2]
[311332203,1705063900646,-500.0,0.00024236,2]
[311332204,1705063900655,-500.0,0.00024236,2]
[311332205,1705063900665,-500.0,0.00024236,2]
[311332206,1705063900675,-500.0,0.00024236,2]
[311332207,1705063900684,-500.0,0.00024236,2]
[311332208,1705063900693,-1368.86,0.00024236,2]
[311332209,1705063900703,-500.0,0.00024236,2]
[311332210,1705063900712,-772.0,0.00024236,2]
[311332211,1705063900723,-500.0,0.00024236,2]
[311332212,1705063900732,-1064.54,0.00024236,2]
[311332213,1705063900742,-500.0,0.00024236,2]
[311332214,1705063900751,-705.07,0.00024236,2]
[311332215,1705063900762,-660.22,0.00024236,2]
[311332216,1705063900772,-500.0,0.00024236,2]
[311332217,1705063900781,-608.43,0.00024236,2]
[311332218,1705063900790,-917.47,0.00024236,2]
[311332219,1705063900800,-500.0,0.00024236,2]
[311332220,1705063900809,-1227.15,0.00024236,2]
[311332221,1705063900819,-500.0,0.00024236,2]
[311332222,1705063900828,-500.0,0.00024236,2]
[311332223,1705063900838,-500.0,0.00024236,2]
[311332224,1705063900847,-873.32,0.00024236,2]
[311332225,1705063900857,-3542.34,0.00024236,2]
[311332226,1705063900866,-500.0,0.00024236,2]
[311332227,1705063900875,-2030.8,0.00024236,2]
[311332228,1705063900885,-519.78283741,0.00024236,2]
[311332229,1705063900894,-491.0588113,0.00024236,2]
[311332230,1705063900904,-804.67,0.00024236,2]
[311332231,1705063900913,-751.35,0.00024236,2]
[311332232,1705063900922,-500.0,0.00024236,2]
[311332233,1705063900932,-500.0,0.00024236,2]
[311332234,1705063900941,-681.41,0.00024236,2]
[311332235,1705063900951,-1040.93,0.00024236,2]
[311332236,1705063900961,-550.77,0.00024236,2]
[311332237,1705063900970,-568.41,0.00024236,2]
[311332238,1705063900980,-500.0,0.00024236,2]
[311332239,1705063900990,-500.0,0.00024236,2]
[311332240,1705063900999,-500.0,0.00024236,2]
[311332241,1705063901009,-500.0,0.00024236,2]
[311332242,1705063901018,-500.0,0.00024236,2]
[311332243,1705063901028,-500.0,0.00024236,2]
[311332244,1705063901036,-837.58,0.00024236,2]
[311332245,1705063901046,-500.0,0.00024236,2]
[311332246,1705063901055,-500.0,0.00024236,2]
[311332247,1705063901065,-500.0,0.00024236,2]
[311332248,1705063901074,-1259.47,0.00024236,2]
[311332249,1705063901084,-645.64,0.00024236,2]
[311332250,1705063901094,-500.0,0.00024236,2]
[311332251,1705063901103,-4639.19,0.00024236,2]
[311332252,1705063901113,-500.0,0.00024236,2]
[311332253,1705063901123,-500.0,0.00024236,2]
[311332254,1705063901133,-528.46,0.00024236,2]
[311332255,1705063901142,-500.0,0.00024236,2]
[311332256,1705063901152,-843.77,0.00024236,2]
[311332257,1705063901162,-500.0,0.00024236,2]
[311332258,1705063901172,-500.0,0.00024236,2]
[311332259,1705063901181,-519.44044508,0.00024236,2]
[311332260,1705063901190,-500.0,0.00024236,2]
[311332261,1705063901199,-500.0,0.00024236,2]
[311332262,1705063901208,-280.6,0.00024236,2]
[311332263,1705063901218,-500.0,0.00024236,2]
[311332264,1705063901227,-500.0,0.00024236,2]
[311332265,1705063901237,-521.61,0.00024236,2]
[311332266,1705063901246,-500.0,0.00024236,2]
[311332267,1705063901255,-500.0,0.00024236,2]
[311332268,1705063901266,-500.0,0.00024236,2]
[311332269,1705063901276,-500.0,0.00024236,2]
[311332270,1705063901285,-500.0,0.00024236,2]
[311332271,1705063901294,-500.0,0.00024236,2]
[311332272,1705063901304,-625.33,0.00024236,2]
[311332273,1705063901313,-1634.05,0.00024236,2]
[311332274,1705063901323,-500.0,0.00024236,2]
[311332275,1705063901333,-450.80599242,0.00024236,2]
[311332276,1705063901343,-500.0,0.00024236,2]
[311332277,1705063901353,-185.06030401,0.00024236,2]
[311332278,1705063901362,-709.97,0.00024236,2]
[311332279,1705063901373,-500.0,0.00024236,2]
[311332280,1705063901382,-835.12,0.00024236,2]
[311332281,1705063901391,-1018.72,0.00024236,2]
[311332282,1705063901400,-500.0,0.00024236,2]
[311332283,1705063901410,-500.0,0.00024236,2]
[311332284,1705063901419,-500.0,0.00024236,2]
[311332285,1705063901428,-500.0,0.00024236,2]
[311332286,1705063901438,-1257.65,0.00024236,2]
[311332287,1705063901447,-1312.63,0.00024236,2]
[311332288,1705063901457,-511.76,0.00024236,2]
[311332289,1705063901466,-500.0,0.00024236,2]
[311332290,1705063901476,-500.0,0.00024236,2]
[311332291,1705063901485,-500.0,0.00024236,2]
[311332292,1705063901502,-500.0,0.00024236,2]
[311332293,1705063901523,-500.0,0.00024236,2]
[311332294,1705063901533,-500.0,0.00024236,2]
[311332295,1705063901542,-500.0,0.00024236,2]
[311332296,1705063901552,-539.08,0.00024236,2]
[311332297,1705063901562,-500.0,0.00024236,2]
[311332298,1705063901572,-500.0,0.00024236,2]
[311332299,1705063901581,-1320.71,0.00024236,2]
[311332300,1705063901591,-623.92281379,0.00024236,2]
[311332301,1705063901601,-969.0,0.00024236,2]
[311332302,1705063901611,-736.76,0.00024236,2]
[311332303,1705063901621,-500.0,0.00024236,2]
[311332304,1705063901631,-500.0,0.00024236,2]
[311332305,1705063901642,-408.32182507,0.00024236,2]
[311332306,1705063901652,-500.0,0.00024236,2]
[311332307,1705063901661,-1026.07,0.00024236,2]
[311332308,1705063901671,-913.29,0.00024236,2]
[311332309,1705063901681,-638.53533274,0.00024236,2]
[311332310,1705063901691,-500.0,0.00024236,2]
[311332311,1705063901701,-721.94,0.00024236,2]
[311332312,1705063901710,-500.0,0.00024238,2]
[311332313,1705063901720,-252.78165668,0.0002429,7]
[311332314,1705063901730,-169.75,0.00024297,2]
[311332315,1705063901740,-12250.86826314,0.00024312,3]
[311332316,1705063901749,-351.29,0.00024342,2]
[311332317,1705063901760,-162.16,0.00024355,2]
[311332318,1705063901769,-200.0,0.00024391,2]
[311332319,1705063901779,-500.0,0.0002444,2]
[311332320,1705063901790,-4223.75,0.00024443,2]
[311332321,1705063901801,-500.0,0.00024443,2]
[311332322,1705063901810,-1122.89,0.00024443,2]
[311332323,1705063901820,-945.58,0.00024443,2]
[311332324,1705063901830,-620.52,0.00024443,2]
[311332325,1705063901840,-703.0,0.00024443,2]
[311332326,1705063901849,-1331.16,0.00024443,2]
[311332327,1705063901860,-3318.66,0.00024443,2]
[311332328,1705063901869,-500.0,0.00024478,2]
[311332329,1705063901880,-534.95,0.00024491,2]
[311332330,1705063901889,-4569.8908539,0.00024493,2]
[311332331,1705063901899,-500.0,0.00024509,2]
[311332332,1705063901908,-572.29307717,0.00024509,2]
[311332333,1705063901918,-500.0,0.00024509,2]
[311332334,1705063901927,-500.0,0.00024509,2]
[311332335,1705063901938,-497.60609004,0.00024509,2]
[311332336,1705063901947,-500.0,0.00024509,2]
[311332337,1705063901957,-500.0,0.00024509,2]
[311332338,1705063901967,-500.0,0.00024509,2]
[311332339,1705063901976,-500.0,0.00024509,2]
[311332340,1705063901986,-500.0,0.00024509,2]
[311332341,1705063901996,-1074.41,0.00024509,2]
[311332342,1705063902006,-500.0,0.00024509,2]
[311332343,1705063902017,-500.0,0.00024509,2]
[311332344,1705063902028,-500.0,0.00024509,2]
[311332345,1705063902038,-4313.59,0.00024509,5]
[311332346,1705063902048,-500.0,0.00024509,2]
[311332347,1705063902059,-2141.96,0.00024509,2]
[311332348,1705063902069,-763.76,0.00024509,2]
[311332349,1705063902079,-13400.37,0.00024509,2]
[311332350,1705063902089,-4452.05,0.00024509,2]
[311332351,1705063902100,-500.0,0.00024509,2]
[311332352,1705063902110,-500.0,0.00024509,2]
[311332353,1705063902119,-500.0,0.00024509,2]
[311332354,1705063902130,-204.91575695,0.00024509,2]
[311332355,1705063902140,-5995.38,0.00024509,2]
[311332356,1705063902151,-500.0,0.00024509,2]
[311332357,1705063902161,-500.0,0.00024509,2]
[311332358,1705063902174,-966.26,0.00024509,2]
[311332359,1705063902186,-590.74444304,0.00024509,2]
[311332360,1705063902196,-455.45369609,0.00024509,2]
[311332361,1705063902206,-500.0,0.00024509,2]
[311332362,1705063902216,-660.56,0.00024509,2]
[311332363,1705063902226,-500.0,0.00024509,2]
[311332364,1705063902236,-500.0,0.00024509,2]
[311332365,1705063902246,-568.04,0.00024509,2]
[311332366,1705063902257,-1008.99,0.00024509,2]
[311332367,1705063902268,-615.37,0.00024509,2]
[311332368,1705063902278,-797.96,0.00024509,2]
[311332369,1705063902288,-500.0,0.00024509,2]
[311332370,1705063902299,-1371.29,0.00024509,2]
[311332371,1705063902309,-686.32,0.00024509,2]
[311332372,1705063902320,-500.0,0.00024509,2]
[311332373,1705063902331,-500.0,0.00024509,2]
[311332374,1705063902342,-500.0,0.00024509,2]
[311332375,1705063902352,-3981.87,0.00024509,2]
[311332376,1705063902362,-584.53,0.00024509,2]
[311332377,1705063902373,-500.0,0.00024509,2]
[311332378,1705063902384,-610.53,0.00024509,2]
[311332379,1705063902394,-766.02,0.00024509,2]
[311332380,1705063902404,-500.0,0.00024509,2]
[311332381,1705063902415,-500.0,0.00024509,2]
[311332382,1705063902425,-621.74,0.00024509,2]
[311332383,1705063902435,-500.0,0.00024509,2]
[311332384,1705063902446,-507.70736952,0.00024509,2]
[311332385,1705063902456,-2752.63,0.00024509,2]
[311332386,1705063902467,-1378.37,0.00024509,2]
[311332387,1705063902478,-500.0,0.00024509,2]
[311332388,1705063902488,-922.86,0.00024509,2]
[311332389,1705063902499,-500.0,0.00024509,2]
[311332390,1705063902509,-500.0,0.00024509,2]
[311332391,1705063902519,-500.0,0.00024509,2]
[311332392,1705063902529,-500.0,0.00024509,2]
[311332393,1705063902539,-712.79,0.00024509,2]
[311332394,1705063902548,-528.29185186,0.00024509,2]
[311332395,1705063902559,-624.87,0.00024509,2]
[311332396,1705063902569,-811.47,0.00024509,2]
[311332397,1705063902579,-500.0,0.00024509,2]
[311332398,1705063902589,-500.0,0.00024509,2]
[311332399,1705063902600,-500.0,0.00024509,2]
[311332400,1705063902610,-500.0,0.00024509,2]
[311332401,1705063902621,-6331.44,0.00024509,2]
[311332402,1705063902631,-995.86,0.00024509,2]
[311332403,1705063902641,-652.82,0.00024509,2]
[311332404,1705063902651,-523.16233691,0.00024509,2]
[311332405,1705063902661,-6343.23,0.00024509,2]
[311332406,1705063902672,-1936.38,0.00024509,2]
[311332407,1705063902683,-500.0,0.00024509,2]
[311332408,1705063902694,-500.0,0.00024509,2]
[311332409,1705063902704,-538.63,0.00024509,2]
[311332410,1705063902714,-500.0,0.00024509,2]
[311332411,1705063902724,-530.12,0.00024509,2]
[311332412,1705063902735,-905.93,0.00024509,2]
[311332413,1705063902745,-500.0,0.00024509,2]
[311332414,1705063902755,-500.0,0.00024509,2]
[311332415,1705063902769,-500.0,0.00024509,2]
[311332416,1705063902780,-500.0,0.00024509,2]
[311332417,1705063902791,-1330.98,0.00024509,2]
[311332418,1705063902800,-584.23,0.00024509,2]
[311332419,1705063902811,-1834.87,0.00024509,2]
[311332420,1705063902822,-500.0,0.00024509,2]
[311332421,1705063902832,-2275.08,0.00024509,2]
[311332422,1705063902843,-3572.07,0.00024509,2]
[311332423,1705063902851,-558.34,0.00024509,2]
[311332424,1705063902861,-500.0,0.00024509,2]
[311332425,1705063902872,-1346.26,0.00024509,2]
[311332426,1705063902882,-1688.4,0.00024509,2]
[311332427,1705063902893,-1004.34,0.00024509,2]
[311332428,1705063902904,-500.0,0.00024509,2]
[311332429,1705063902913,-500.0,0.00024509,2]
[311332430,1705063902924,-598.68,0.00024509,2]
[311332431,1705063902934,-929.29,0.00024509,2]
[311332432,1705063902943,-500.0,0.00024509,2]
[311332433,1705063902954,-1187.5,0.00024509,2]
[311332434,1705063902965,-500.0,0.00024509,2]
[311332435,1705063902976,-500.0,0.00024509,2]
[311332436,1705063902987,-937.32,0.00024509,2]
[311332437,1705063902997,-753.23,0.00024509,2]
[311332438,1705063903015,-507.51,0.00024509,2]
[311332439,1705063903025,-500.0,0.00024509,2]
[311332440,1705063903037,-500.0,0.0002451,2]
[311332441,1705063903047,-500.0,0.0002451,2]
[311332442,1705063903057,-500.0,0.0002451,2]
[311332443,1705063903066,-500.0,0.0002451,2]
[311332444,1705063903075,-500.0,0.0002451,2]
[311332445,1705063903085,-500.0,0.0002451,2]
[311332446,1705063903094,-613.99434043,0.0002451,2]
[311332447,1705063903104,-500.0,0.0002451,2]
[311332448,1705063903113,-522.02,0.0002451,2]
[311332449,1705063903123,-500.0,0.0002451,2]
[311332450,1705063903133,-273.15956784,0.0002451,2]
[311332451,1705063903142,-500.0,0.0002451,2]
[311332452,1705063903152,-500.0,0.0002451,2]
[311332453,1705063903162,-500.0,0.0002451,2]
[311332454,1705063903172,-500.0,0.0002451,2]
[311332455,1705063903182,-500.0,0.0002451,2]
[311332456,1705063903192,-500.0,0.0002451,2]
[311332457,1705063903201,-500.0,0.0002451,2]
[311332458,1705063903212,-500.0,0.0002451,2]
[311332459,1705063903222,-500.0,0.0002451,2]
[311332460,1705063903232,-500.0,0.0002451,2]
[311332461,1705063903241,-500.0,0.0002451,2]
[311332462,1705063903251,-2353.43,0.0002451,2]
[311332463,1705063903262,-500.0,0.0002451,2]
[311332464,1705063903273,-353.85370213,0.0002451,2]
[311332465,1705063903283,-500.0,0.0002451,2]
[311332466,1705063903293,-500.0,0.0002451,2]
[311332467,1705063903303,-500.0,0.0002451,2]
[311332468,1705063903312,-500.0,0.0002451,2]
[311332469,1705063903323,-500.0,0.0002451,2]
[311332470,1705063903335,-500.0,0.0002451,2]
[311332471,1705063903345,-500.0,0.0002451,2]
[311332472,1705063903356,-578.98285248,0.0002451,2]
[311332473,1705063903366,-500.0,0.0002451,2]
[311332474,1705063903376,-500.0,0.0002451,2]
[311332475,1705063903386,-500.0,0.0002451,2]
[311332476,1705063903397,-500.0,0.0002451,2]
[311332477,1705063903407,-500.0,0.0002451,2]
[311332478,1705063903417,-500.0,0.0002451,2]
[311332479,1705063903427,-500.0,0.0002451,2]
[311332480,1705063903437,-762.84,0.0002451,2]
[311332481,1705063903448,-500.0,0.0002451,2]
[311332482,1705063903458,-500.0,0.0002451,2]
[311332483,1705063903468,-759.51,0.0002451,2]
[311332484,1705063903477,-502.93050783,0.0002451,2]
[311332485,1705063903487,-500.0,0.0002451,2]
[311332486,1705063903496,-500.0,0.0002451,2]
[311332487,1705063903507,-500.0,0.0002451,2]
[311332488,1705063903518,-500.0,0.0002451,2]
[311332489,1705063903527,-500.0,0.0002451,2]
[311332490,1705063903537,-500.0,0.0002451,2]
[311332491,1705063903546,-500.0,0.0002451,2]
[311332492,1705063903556,-500.0,0.0002451,2]
[311332493,1705063903566,-500.0,0.0002451,2]
[311332494,1705063903576,-290.13748142,0.0002451,2]
[311332495,1705063903586,-500.0,0.0002451,2]
[311332496,1705063903596,-500.0,0.0002451,2]
[311332497,1705063903606,-500.0,0.0002451,2]
[311332498,1705063903617,-500.0,0.0002451,2]
[311332499,1705063903627,-500.0,0.0002451,2]
[311332500,1705063903637,-500.0,0.0002451,2]
[311332501,1705063903647,-500.0,0.0002451,2]
[311332502,1705063903657,-241.23981671,0.0002451,2]
[311332503,1705063903668,-500.0,0.0002451,2]
[311332504,1705063903679,-500.0,0.0002451,2]
[311332505,1705063903689,-500.0,0.0002451,2]
[311332506,1705063903699,-339.23146646,0.0002451,2]
[311332507,1705063903709,-500.0,0.0002451,2]
[311332508,1705063903720,-217.09026598,0.0002451,2]
[311332509,1705063903732,-500.0,0.0002451,2]
[311332510,1705063903742,-500.0,0.0002451,2]
[311332511,1705063903752,-500.0,0.0002451,2]
[311332512,1705063903763,-500.0,0.0002451,2]
[311332513,1705063903944,-420.5491314,0.0002451,2]
[311332514,1705063903954,-538.07,0.0002451,2]
[311332515,1705063903963,-500.0,0.0002451,2]
[311332516,1705063903973,-654.77,0.0002451,2]
[311332517,1705063903983,-500.0,0.0002451,2]
[311332518,1705063903993,-500.0,0.0002451,2]
[311332519,1705063904002,-500.0,0.0002451,2]
[311332520,1705063904014,-500.0,0.0002451,2]
[311332521,1705063904023,-1000.0,0.0002451,2]
[311332522,1705063904033,-500.0,0.0002451,2]
[311332523,1705063904043,-500.0,0.0002451,2]
[311332524,1705063904052,-500.0,0.0002451,2]
[311332525,1705063904062,-500.0,0.0002451,2]
[311332526,1705063904073,-500.0,0.0002451,2]
[311332527,1705063904083,-500.0,0.0002451,2]
[311332528,1705063904092,-500.0,0.0002451,2]
[311332529,1705063904101,-217.95,0.0002451,2]
[311332530,1705063904112,-535.86,0.0002451,2]
[311332531,1705063904122,-500.0,0.0002451,2]
[311332532,1705063904131,-2642.46,0.0002451,2]
[311332533,1705063904142,-500.0,0.0002451,2]
[311332534,1705063904152,-950.9,0.0002451,2]
[311332535,1705063904162,-500.0,0.0002451,2]
[311332536,1705063904174,-500.0,0.0002451,2]
[311332537,1705063904184,-500.0,0.0002451,2]
[311332538,1705063904193,-500.0,0.0002451,2]
[311332539,1705063904202,-536.71,0.0002451,2]
[311332540,1705063904212,-500.0,0.0002451,2]
[311332541,1705063904222,-500.0,0.0002451,2]
[311332542,1705063904232,-500.0,0.0002451,2]
[311332543,1705063904241,-500.0,0.0002451,2]
[311332544,1705063904252,-500.0,0.0002451,2]
[311332545,1705063904264,-500.0,0.0002451,2]
[311332546,1705063904274,-500.0,0.0002451,2]
[311332547,1705063904284,-693.32,0.0002451,2]
[311332548,1705063904295,-500.0,0.0002451,2]
[311332549,1705063904305,-500.0,0.0002451,2]
[311332550,1705063904315,-500.0,0.0002451,2]
[311332551,1705063904325,-593.67725211,0.0002451,2]
[311332552,1705063904335,-500.0,0.0002451,2]
[311332553,1705063904346,-568.04,0.0002451,2]
[311332554,1705063904357,-500.0,0.0002451,2]
[311332555,1705063904368,-500.0,0.0002451,2]
[311332556,1705063904377,-500.0,0.0002451,2]
[311332557,1705063904387,-500.0,0.0002451,2]
[311332558,1705063904397,-500.0,0.0002451,2]
[311332559,1705063904408,-500.0,0.0002451,2]
[311332560,1705063904418,-500.0,0.0002451,2]
[311332561,1705063904428,-500.0,0.0002451,2]
[311332562,1705063904438,-500.0,0.0002451,2]
[311332563,1705063904449,-500.0,0.0002451,2]
[311332564,1705063904459,-500.0,0.0002451,2]
[311332565,1705063904469,-500.0,0.0002451,2]
[311332566,1705063904479,-500.0,0.0002451,2]
[311332567,1705063904489,-500.0,0.0002451,2]
[311332568,1705063904498,-500.0,0.0002451,2]
[311332569,1705063904510,-500.0,0.0002451,2]
[311332570,1705063904519,-500.0,0.0002451,2]
[311332571,1705063904529,-500.0,0.0002451,2]
[311332572,1705063904540,-500.0,0.0002451,2]
[311332573,1705063904549,-500.0,0.0002451,2]
[311332574,1705063904559,-500.0,0.0002451,2]
[311332575,1705063904569,-603.25,0.0002451,2]
[311332576,1705063904578,-500.0,0.0002451,2]
[311332577,1705063904588,-500.0,0.0002451,2]
[311332578,1705063904598,-500.0,0.0002451,2]
[311332579,1705063904607,-500.0,0.0002451,2]
[311332580,1705063904621,-500.0,0.0002451,2]
[311332581,1705063904631,-500.0,0.0002451,2]
[311332582,1705063904642,-500.0,0.0002451,2]
[311332583,1705063904652,-500.0,0.0002451,2]
[311332584,1705063904662,-500.0,0.0002451,2]
[311332585,1705063904671,-500.0,0.0002451,2]
[311332586,1705063904681,-500.0,0.0002451,2]
[311332587,1705063904692,-500.0,0.0002451,2]
[311332588,1705063904701,-500.0,0.0002451,2]
[311332589,1705063904711,-500.0,0.0002451,2]
[311332590,1705063904721,-500.0,0.0002451,2]
[311332591,1705063904730,-500.0,0.0002451,2]
[311332592,1705063904740,-819.21,0.0002451,2]
[311332593,1705063904750,-500.0,0.0002451,2]
[311332594,1705063904761,-500.0,0.0002451,2]
[311332595,1705063904771,-500.0,0.0002451,2]
[311332596,1705063904780,-500.0,0.0002451,2]
[311332597,1705063904790,-500.0,0.0002451,2]
[311332598,1705063904799,-500.0,0.0002451,2]
[311332599,1705063904809,-625.04,0.0002451,2]
[311332600,1705063904819,-584.87,0.0002451,2]
[311332601,1705063904830,-500.0,0.0002451,2]
[311332602,1705063904839,-526.38,0.0002451,2]
[311332603,1705063904849,-500.0,0.0002451,2]
[311332604,1705063904859,-550.56,0.0002451,2]
[311332605,1705063904868,-317.78442532,0.0002451,2]
[311332606,1705063904877,-500.0,0.0002451,2]
[311332607,1705063904887,-500.0,0.0002451,2]
[311332608,1705063904897,-500.0,0.0002451,2]
[311332609,1705063904907,-500.0,0.0002451,2]
[311332610,1705063904916,-500.0,0.0002451,2]
[311332611,1705063904926,-500.0,0.0002451,2]
[311332612,1705063904936,-500.0,0.0002451,2]
[311332613,1705063904946,-624.58,0.0002451,2]
[311332614,1705063904956,-500.0,0.0002451,2]
[311332615,1705063904966,-534.74,0.0002451,2]
[311332616,1705063904975,-500.0,0.0002451,2]
[311332617,1705063904985,-500.0,0.0002451,2]
[311332618,1705063904994,-500.0,0.0002451,2]
[311332619,1705063905004,-745.45,0.0002451,2]
[311332620,1705063905015,-500.0,0.0002451,2]
[311332621,1705063905024,-500.0,0.0002451,2]
[311332622,1705063905033,-500.0,0.0002451,2]
[311332623,1705063905043,-595.28,0.0002451,2]
[311332624,1705063905054,-526.79,0.0002451,2]
[311332625,1705063905064,-495.64925165,0.0002451,2]
[311332626,1705063905073,-500.0,0.0002451,2]
[311332627,1705063905084,-500.0,0.0002451,2]
[311332628,1705063905094,-500.0,0.0002451,2]
[311332629,1705063905103,-500.0,0.0002451,2]
[311332630,1705063905114,-500.0,0.0002451,2]
[311332631,1705063905124,-627.56,0.0002451,2]
[311332632,1705063905134,-500.0,0.0002451,2]
[311332633,1705063905145,-500.0,0.0002451,2]
[311332634,1705063905155,-500.0,0.0002451,2]
[311332635,1705063905168,-503.09,0.0002451,2]
[311332636,1705063905178,-500.0,0.0002451,2]
[311332637,1705063905189,-500.0,0.0002451,2]
[311332638,1705063905198,-151.75,0.0002451,2]